bitfinex/quotes_SOLUSD_20240811
["timestamp","ask_amount","ask_price","bid_price","bid_amount"]
[1723369109641,0.97439657,156.88,156.85,0.843774]
[1723369110557,21.87,156.89,156.85,0.843774]
[1723369110743,45.25098,156.88,156.85,0.843774]
[1723369111355,22.6557,156.86,156.85,0.843774]
[1723369111563,67.90668,156.86,156.85,0.843774]
[1723369112954,68.03217,156.86,156.85,0.843774]
[1723369113142,22.6557,156.86,156.85,0.843774]
[1723369113849,22.6557,156.9,156.85,0.843774]
[1723369114236,21.87,156.89,156.85,0.843774]
[1723369114637,22.6557,156.9,156.85,0.843774]
[1723369114832,0.97439657,156.89,156.85,0.843774]
[1723369115149,22.12098,156.89,156.85,0.843774]
[1723369115462,22.6557,156.9,156.85,0.843774]
[1723369116273,0.12549,156.89,156.85,0.843774]
[1723369116557,22.6557,156.9,156.85,0.843774]
[1723369116933,23.09537657,156.89,156.85,0.843774]
[1723369117129,45.12549,156.88,156.85,0.843774]
[1723369117361,49.58749,156.88,156.85,0.843774]
[1723369117560,50.56198657,156.88,156.85,0.843774]
[1723369117731,0.12549,156.84,156.76,21.87]
[1723369117936,45.25098,156.84,156.76,21.87]
[1723369118139,45.12549,156.84,156.73,6.4324]
[1723369118338,29.26057657,156.83,156.72,31.86130444]
[1723369118642,46.09988657,156.82,156.72,21.87]
[1723369119037,49.58919,156.82,156.72,21.87]
[1723369119238,22.12098,156.81,156.71,21.87]
[1723369119549,0.97439657,156.8,156.71,21.87]
[1723369119733,0.97439657,156.79,156.71,21.87]
[1723369119937,45.12549,156.82,156.73,21.87]
[1723369120566,0.97439657,156.81,156.69,7.276174]
[1723369120733,0.12549,156.8,156.72,21.87]
[1723369120936,0.25098,156.8,156.73,20.0]
[1723369121151,16.4905,156.79,156.73,20.0]
[1723369121359,16.4905,156.79,156.69,20.843774]
[1723369121658,16.4905,156.79,156.71,21.87]
[1723369122036,0.97439657,156.78,156.71,21.87]
[1723369122246,16.4905,156.79,156.69,0.843774]
[1723369122454,17.46489657,156.79,156.69,0.843774]
[1723369122755,17.46489657,156.79,156.71,21.87]
[1723369122961,45.12549,156.78,156.7,21.87]
[1723369123163,45.12549,156.78,156.71,20.0]
[1723369123367,0.97439657,156.77,156.7,21.87]
[1723369123674,45.12549,156.78,156.7,21.87]
[1723369124244,45.12549,156.78,156.69,0.843774]
[1723369124245,15.9218,156.71,156.69,0.843774]
[1723369124452,0.97439657,156.7,156.6,21.87]
[1723369124662,0.97439657,156.7,156.62,21.87]
[1723369124663,0.12549,156.7,156.62,21.87]
[1723369124852,15.9218,156.71,156.62,21.87]
[1723369125175,0.97439657,156.7,156.66,4.4682]
[1723369125340,15.9218,156.71,156.69,4.4671]
[1723369125661,22.0569,156.77,156.71,4.4666]
[1723369125870,0.97439657,156.76,156.71,4.4667]
[1723369126039,0.97439657,156.76,156.72,4.4665]
[1723369126243,0.97439657,156.76,156.74,4.4659]
[1723369126441,22.0569,156.77,156.75,4.4655]
[1723369126644,0.97439657,156.76,156.7,21.87]
[1723369126855,0.97439657,156.76,156.65,0.12549]
[1723369127045,0.97439657,156.76,156.68,21.87]
[1723369127457,23.03129657,156.77,156.65,0.12549]
[1723369127759,0.97439657,156.76,156.67,21.87]
[1723369128164,0.12549,156.75,156.63,20.0]
[1723369128382,0.97439657,156.75,156.62,6.4467]
[1723369128665,0.97439657,156.75,156.68,21.87]
[1723369128963,22.0569,156.77,156.68,21.87]
[1723369129170,22.84439657,156.76,156.71,4.4668]
[1723369129341,4.4666,156.72,156.59,12.82847717]
[1723369129543,21.87,156.74,156.68,4.4676]
[1723369129785,26.3359,156.74,156.68,4.4676]
[1723369129936,21.87,156.72,156.66,4.4681]
[1723369130136,21.87,156.68,156.53,5.93617717]
[1723369130337,21.87,156.68,156.54,0.843774]
[1723369130658,0.25098,156.69,156.55,1.27699258]
[1723369130848,5.56698657,156.7,156.6,21.87]
[1723369131034,5.56698657,156.7,156.58,21.87]
[1723369131035,0.12549,156.68,156.58,21.87]
[1723369131234,4.4683,156.66,156.54,0.843774]
[1723369131472,0.25098,156.65,156.54,0.843774]
[1723369131643,0.97439657,156.65,156.56,21.87]
[1723369131844,0.97439657,156.64,156.56,21.87]
[1723369132045,0.97439657,156.66,156.56,21.87]
[1723369132240,0.97439657,156.66,156.54,0.843774]
[1723369132455,21.87,156.65,156.54,0.843774]
[1723369132663,46.09988657,156.64,156.55,21.87]
[1723369133052,46.09988657,156.64,156.54,0.843774]
[1723369133248,0.12549,156.63,156.54,0.843774]
[1723369133465,0.12549,156.63,156.47,5.93617717]
[1723369133466,15.9218,156.58,156.47,5.93617717]
[1723369133674,15.9218,156.58,156.52,21.87]
[1723369133963,6.1351,156.61,156.55,27.45]
[1723369134380,15.9218,156.63,156.59,27.45]
[1723369134540,6.1351,156.66,156.62,27.45]
[1723369135763,15.9218,156.7,156.64,27.45]
[1723369136156,15.9218,156.7,156.57,0.12549]
[1723369136385,15.9218,156.7,156.62,27.45]
[1723369136888,16.89619657,156.7,156.62,27.45]
[1723369137669,16.89619657,156.7,156.6,27.45]
[1723369137865,16.89619657,156.7,156.49,6.4467]
[1723369137866,27.70098,156.69,156.58,27.45]
[1723369138165,27.57549,156.67,156.56,27.45]
[1723369138392,4.4686,156.65,156.54,27.45]
[1723369138693,6.1351,156.63,156.54,27.45]
[1723369138985,0.97439657,156.62,156.54,27.45]
[1723369139188,0.97439657,156.61,156.52,27.45]
[1723369139391,45.0,156.62,156.52,27.45]
[1723369139684,16.04729,156.61,156.52,27.45]
[1723369139885,15.9218,156.61,156.52,27.45]
[1723369140260,15.9218,156.61,156.45,6.26002161]
[1723369140461,0.97439657,156.6,156.52,27.45]
[1723369140663,1.09988657,156.6,156.52,27.45]
[1723369140962,15.9218,156.61,156.54,27.45]
[1723369141179,0.97439657,156.6,156.54,27.45]
[1723369141492,0.12549,156.59,156.51,27.45]
[1723369141796,0.97439657,156.59,156.53,27.45]
[1723369141971,0.97439657,156.58,156.53,27.45]
[1723369142179,0.97439657,156.6,156.53,27.45]
[1723369142376,0.12549,156.58,156.45,6.26002161]
[1723369142689,0.12549,156.58,156.4,13.23246872]
[1723369142690,16.1122,156.55,156.48,27.45]
[1723369142888,1.09988657,156.54,156.41,10.0112151]
[1723369143186,0.97439657,156.54,156.49,27.45]
[1723369143386,16.1122,156.55,156.49,27.45]
[1723369143693,17.08659657,156.55,156.49,27.45]
[1723369143989,16.1122,156.55,156.47,27.45]
[1723369144364,0.12549,156.54,156.45,27.45]
[1723369144566,0.97439657,156.54,156.47,27.45]
[1723369144861,16.1122,156.55,156.49,27.45]
[1723369145062,0.97439657,156.54,156.49,27.45]
[1723369145663,16.1122,156.55,156.51,27.45]
[1723369145859,16.1122,156.55,156.49,27.45]
[1723369147487,16.1122,156.55,156.51,27.45]
[1723369149081,16.1122,156.55,156.48,27.45]
[1723369149272,16.1122,156.55,156.5,27.45]
[1723369149472,16.1122,156.55,156.52,27.45]
[1723369149693,6.3302,156.57,156.44,0.12549]
[1723369149903,6.3302,156.57,156.55,27.45]
[1723369150189,20.0,156.71,156.55,27.45]
[1723369150190,6.3302,156.62,156.56,20.0]
[1723369150404,6.3302,156.62,156.61,27.45]
[1723369150577,16.1122,156.66,156.61,27.45]
[1723369151673,16.1122,156.66,156.63,27.45]
[1723369152486,16.1122,156.66,156.61,27.45]
[1723369156404,17.08659657,156.66,156.59,27.45]
[1723369156585,16.1122,156.66,156.59,27.45]
[1723369158481,16.1122,156.66,156.57,27.45]
[1723369160106,16.1122,156.66,156.59,27.45]
[1723369160308,16.1122,156.66,156.59,28.72701717]
[1723369160511,16.1122,156.66,156.61,27.45]
[1723369162328,6.3302,156.67,156.63,27.45]
[1723369165197,6.3302,156.67,156.65,27.45]
[1723369166382,6.3302,156.67,156.63,27.45]
[1723369166708,6.3302,156.67,156.61,27.45]
[1723369167689,6.3302,156.67,156.59,27.45]
[1723369168518,1.09988657,156.66,156.57,27.45]
[1723369168711,0.37647,156.65,156.57,27.45]
[1723369169413,4.84497,156.65,156.57,27.45]
[1723369169913,0.37647,156.65,156.57,27.45]
[1723369172013,6.3302,156.67,156.57,27.45]
[1723369172217,11.77259657,156.67,156.57,27.45]
[1723369172421,49.84467,156.66,156.57,27.45]
[1723369172998,45.37647,156.66,156.57,27.45]
[1723369175227,0.25098,156.66,156.57,27.45]
[1723369175424,6.3302,156.67,156.57,27.45]
[1723369175643,27.45,156.7,156.46,6.67135409]
[1723369175644,4.4705,156.58,156.46,6.67135409]
[1723369175927,31.9205,156.58,156.47,27.45]
[1723369176128,6.0031,156.53,156.41,16.68853501]
[1723369176300,6.0031,156.53,156.44,27.45]
[1723369176503,6.0031,156.53,156.44,28.7280254]
[1723369176823,6.0031,156.53,156.44,27.45]
[1723369177025,6.0031,156.53,156.44,28.72802619]
[1723369177340,6.0031,156.53,156.44,27.45]
[1723369177628,6.0031,156.53,156.46,27.45]
[1723369177820,6.0031,156.53,156.44,27.45]
[1723369178203,6.0031,156.53,156.45,1.27803585]
[1723369178537,6.0031,156.53,156.44,27.45]
[1723369178703,6.0031,156.53,156.45,20.0]
[1723369178903,6.0031,156.53,156.46,27.45]
[1723369179128,6.0031,156.53,156.5,27.45]
[1723369179299,15.1546,156.59,156.52,27.45]
[1723369179300,6.0031,156.57,156.52,27.45]
[1723369179812,6.0031,156.57,156.5,27.45]
[1723369180009,6.0031,156.57,156.51,20.0]
[1723369180312,6.0031,156.57,156.43,7.6125304]
[1723369180517,6.0031,156.57,156.48,27.45]
[1723369180817,6.0031,156.57,156.49,20.0]
[1723369181019,6.0031,156.57,156.5,27.45]
[1723369181411,6.0031,156.57,156.49,20.0]
[1723369182725,6.0031,156.57,156.49,21.27784213]
[1723369183510,6.0031,156.57,156.5,27.45]
[1723369183711,6.0031,156.57,156.51,1.27770498]
[1723369183920,6.0031,156.57,156.5,28.72770495]
[1723369184342,6.0031,156.57,156.5,27.45]
[1723369185602,6.0031,156.57,156.49,20.0]
[1723369186609,6.0031,156.57,156.5,28.72783313]
[1723369186822,6.0031,156.57,156.5,27.45]
[1723369187715,6.0031,156.57,156.51,1.27755354]
[1723369187914,6.0031,156.57,156.5,27.45]
[1723369189036,6.0031,156.57,156.5,28.72768246]
[1723369189238,6.0031,156.57,156.51,20.0]
[1723369190032,6.0031,156.57,156.51,21.27764259]
[1723369190239,6.0031,156.57,156.52,1.27764259]
[1723369190408,6.0031,156.57,156.52,1.27764249]
[1723369190608,6.0031,156.57,156.5,27.45]
[1723369190819,6.0031,156.57,156.51,20.0]
[1723369191011,6.0031,156.57,156.51,21.27763535]
[1723369191212,6.0031,156.57,156.51,20.0]
[1723369192320,6.0031,156.57,156.51,21.27761163]
[1723369193016,6.0031,156.57,156.51,20.0]
[1723369193218,6.0031,156.57,156.51,21.27764322]
[1723369194450,6.0031,156.57,156.51,20.0]
[1723369195819,6.0031,156.57,156.52,28.7276405]
[1723369196022,6.0031,156.57,156.54,27.45]
[1723369196428,6.0031,156.57,156.55,1.27745494]
[1723369196745,15.1546,156.59,156.56,27.45]
[1723369200031,6.394,156.61,156.56,27.45]
[1723369200236,16.4003,156.68,156.6,27.45]
[1723369200439,16.4003,156.68,156.57,21.27706551]
[1723369200440,16.4003,156.68,156.66,27.45]
[1723369200624,16.4003,156.68,156.62,27.45]
[1723369200825,0.97439657,156.67,156.6,27.45]
[1723369201030,0.97439657,156.67,156.58,20.0]
[1723369201031,16.4003,156.68,156.58,27.45]
[1723369201422,0.97439657,156.67,156.58,27.45]
[1723369201637,16.4003,156.68,156.58,27.45]
[1723369201832,21.84239657,156.68,156.58,27.45]
[1723369202038,45.50196,156.67,156.56,27.45]
[1723369202242,45.50196,156.67,156.57,20.0]
[1723369202556,45.25098,156.67,156.57,20.0]
[1723369202722,16.4003,156.68,156.58,27.45]
[1723369202922,16.4003,156.68,156.6,27.45]
[1723369203551,16.4003,156.68,156.62,27.45]
[1723369204429,16.4003,156.68,156.6,27.45]
[1723369204635,16.4003,156.68,156.63,27.45]
[1723369204867,6.394,156.69,156.65,27.45]
[1723369205022,16.0022,156.72,156.67,27.45]
[1723369206148,16.0022,156.72,156.69,27.45]
[1723369206653,16.0022,156.72,156.67,27.45]
[1723369207731,16.0022,156.72,156.69,27.45]
[1723369208047,16.0022,156.76,156.71,27.45]
[1723369208415,16.0022,156.76,156.69,27.45]
[1723369211675,16.0022,156.76,156.7,1.27604612]
[1723369211854,6.1137,156.78,156.71,27.45]
[1723369212579,6.1137,156.78,156.73,27.45]
[1723369212865,6.1137,156.78,156.74,1.27572895]
[1723369213972,6.1137,156.78,156.73,27.45]
[1723369214140,16.0022,156.85,156.77,27.45]
[1723369214339,16.0022,156.85,156.74,1.40115239]
[1723369214340,16.0022,156.85,156.79,27.45]
[1723369214749,16.0022,156.85,156.8,1.27521533]
[1723369215065,6.1137,156.87,156.79,27.57549]
[1723369215258,6.1137,156.87,156.79,27.45]
[1723369215574,6.1137,156.87,156.8,1.27509509]
[1723369215738,6.1137,156.87,156.79,27.45]
[1723369216675,6.1137,156.87,156.81,27.45]
[1723369216855,6.1137,156.87,156.82,1.27504475]
[1723369217441,6.1137,156.87,156.83,1.27500321]
[1723369218746,6.1137,156.87,156.79,27.45]
[1723369219078,4.4634,156.83,156.75,27.45]
[1723369219256,4.4631,156.84,156.75,27.45]
[1723369219572,27.45,156.85,156.75,27.45]
[1723369219946,31.9131,156.85,156.75,27.45]
[1723369220169,4.4625,156.86,156.76,1.27537981]
[1723369220479,33.5637,156.87,156.75,27.45]
[1723369220480,4.4629,156.85,156.75,27.45]
[1723369220778,33.5637,156.87,156.75,27.45]
[1723369220779,4.4625,156.86,156.75,27.45]
[1723369220979,4.4625,156.86,156.76,1.27534891]
[1723369221150,4.4625,156.86,156.77,1.27534402]
[1723369221546,4.4628,156.85,156.75,27.45]
[1723369221753,4.4628,156.85,156.69,20.2548304]
[1723369221754,42.6261,156.83,156.73,27.45]
[1723369221969,42.6261,156.83,156.71,27.45]
[1723369222167,47.0897,156.83,156.71,27.45]
[1723369222361,47.0897,156.83,156.72,1.27573561]
[1723369222676,42.6261,156.83,156.72,1.27573561]
[1723369223182,42.6261,156.83,156.72,21.27573561]
[1723369223667,15.1761,156.83,156.73,27.57549]
[1723369223872,15.1761,156.83,156.74,46.40095605]
[1723369225454,15.1761,156.83,156.74,45.12549]
[1723369225976,15.1761,156.83,156.74,46.4009596]
[1723369226176,15.1761,156.83,156.72,20.25098]
[1723369226177,43.60049657,156.83,156.72,20.0]
[1723369226362,27.45,156.81,156.69,27.45]
[1723369226557,4.4645,156.79,156.69,27.45]
[1723369226880,4.4648,156.78,156.67,27.45]
[1723369227051,4.4648,156.78,156.65,27.45]
[1723369227052,27.45,156.77,156.65,27.45]
[1723369227252,6.5889,156.76,156.65,27.45]
[1723369227884,6.5889,156.76,156.67,27.45]
[1723369231677,11.0544,156.76,156.65,27.45]
[1723369231856,11.0544,156.76,156.66,20.0]
[1723369232256,6.5889,156.76,156.66,20.0]
[1723369232479,6.5889,156.76,156.69,27.45]
[1723369233353,6.5889,156.76,156.7,1.27601247]
[1723369233886,6.5889,156.76,156.69,27.45]
[1723369235287,6.5889,156.76,156.7,1.27599051]
[1723369235575,6.5889,156.76,156.69,27.45]
[1723369236172,6.5889,156.76,156.69,28.72591203]
[1723369236497,4.4666,156.72,156.56,18.3604]
[1723369236792,38.5057,156.71,156.6,27.45]
[1723369237556,34.0389,156.71,156.6,27.45]
[1723369238283,6.5889,156.71,156.62,27.45]
[1723369239083,6.5889,156.71,156.63,21.27640634]
[1723369239283,6.5889,156.71,156.63,20.0]
[1723369241578,6.5889,156.71,156.63,21.2763823]
[1723369241882,6.5889,156.71,156.63,20.0]
[1723369242565,6.5889,156.71,156.64,1.27638294]
[1723369243880,6.5889,156.71,156.64,1.27642498]
[1723369244191,6.5889,156.71,156.63,20.0]
[1723369245977,16.641,156.7,156.63,20.0]
[1723369247181,16.641,156.7,156.63,21.27660342]
[1723369247690,16.641,156.7,156.63,20.0]
[1723369250671,16.641,156.7,156.6,27.45]
[1723369250883,16.641,156.7,156.61,1.27669146]
[1723369251988,16.641,156.7,156.61,21.27669146]
[1723369253897,16.641,156.7,156.61,1.27669146]
[1723369254195,16.641,156.7,156.61,20.0]
[1723369254577,16.641,156.7,156.62,27.45]
[1723369255698,16.641,156.7,156.63,21.93]
[1723369256390,16.641,156.7,156.64,1.27665252]
[1723369256703,16.641,156.7,156.65,23.2065162]
[1723369256879,16.641,156.7,156.65,21.93]
[1723369257280,16.641,156.7,156.63,21.93]
[1723369257793,16.641,156.7,156.64,1.27657486]
[1723369258192,16.641,156.7,156.63,21.93]
[1723369258811,16.641,156.7,156.64,1.2765492]
[1723369258987,16.641,156.7,156.65,1.27647689]
[1723369259611,16.641,156.7,156.63,21.93]
[1723369260598,16.641,156.7,156.67,21.93]
[1723369260774,16.641,156.7,156.69,21.93]
[1723369262297,16.641,156.7,156.62,1.27625884]
[1723369262480,16.641,156.7,156.66,21.93]
[1723369262677,16.641,156.7,156.67,20.0]
[1723369263283,16.641,156.7,156.68,23.2063429]
[1723369263498,16.641,156.7,156.68,21.93]
[1723369264784,16.641,156.7,156.67,20.0]
[1723369265411,16.641,156.7,156.64,21.93]
[1723369265783,16.641,156.7,156.62,21.93]
[1723369266007,21.93,156.68,156.56,6.57758272]
[1723369266321,6.265,156.67,156.58,21.93]
[1723369266981,7.23939657,156.67,156.58,21.93]
[1723369267309,37.6697,156.66,156.56,21.93]
[1723369267506,15.7397,156.66,156.56,21.93]
[1723369267694,15.7397,156.66,156.58,21.93]
[1723369269084,15.7397,156.66,156.6,21.93]
[1723369269613,15.7397,156.66,156.62,21.93]
[1723369269990,15.7397,156.66,156.6,21.93]
[1723369270188,15.7397,156.66,156.58,21.93]
[1723369270407,15.7397,156.66,156.59,20.0]
[1723369271408,15.7397,156.66,156.58,21.93]
[1723369272983,15.7397,156.66,156.56,21.93]
[1723369273205,21.93,156.65,156.57,20.0]
[1723369273409,67.05549,156.65,156.56,21.93]
[1723369273608,21.93,156.65,156.57,1.27724898]
[1723369273908,15.7397,156.66,156.56,21.93]
[1723369274407,15.7397,156.66,156.57,1.2770961]
[1723369274614,15.7397,156.66,156.56,21.93]
[1723369274816,15.7397,156.66,156.57,20.0]
[1723369275121,21.93,156.65,156.56,21.93]
[1723369275286,6.265,156.64,156.56,21.93]
[1723369275482,6.265,156.64,156.57,21.27716977]
[1723369275697,6.265,156.64,156.57,20.0]
[1723369276490,6.265,156.64,156.57,21.27717234]
[1723369276708,6.265,156.64,156.56,21.93]
[1723369276912,6.265,156.64,156.54,21.93]
[1723369277094,6.265,156.64,156.55,20.0]
[1723369277304,15.7397,156.62,156.55,20.0]
[1723369277489,15.7397,156.62,156.52,21.93]
[1723369277687,22.90439657,156.61,156.53,20.0]
[1723369277902,6.265,156.59,156.52,21.93]
[1723369278206,6.265,156.59,156.53,20.0]
[1723369278910,6.265,156.59,156.5,21.93]
[1723369279117,6.265,156.59,156.52,21.93]
[1723369279421,6.265,156.59,156.53,1.27742949]
[1723369280416,6.265,156.59,156.52,21.93]
[1723369280586,6.265,156.59,156.53,1.27750805]
[1723369283410,6.265,156.59,156.52,21.93]
[1723369284020,6.265,156.59,156.53,1.27758638]
[1723369284414,6.265,156.59,156.52,21.93]
[1723369287209,16.388,156.58,156.52,21.93]
[1723369289100,16.388,156.58,156.5,21.93]
[1723369289832,16.388,156.58,156.52,21.93]
[1723369290136,16.388,156.58,156.53,1.27755564]
[1723369290429,16.388,156.58,156.54,21.93]
[1723369290633,16.388,156.58,156.55,1.27729706]
[1723369290805,16.388,156.58,156.54,21.93]
[1723369291717,16.388,156.58,156.56,21.93]
[1723369292023,16.388,156.62,156.56,21.93]
[1723369292330,16.388,156.62,156.58,21.93]
[1723369292505,16.388,156.62,156.6,21.93]
[1723369295121,16.388,156.66,156.6,21.93]
[1723369295421,16.388,156.7,156.64,21.93]
[1723369295729,16.388,156.7,156.66,21.93]
[1723369296117,16.388,156.7,156.67,1.27638182]
[1723369296707,16.388,156.7,156.66,21.93]
[1723369296708,16.388,156.7,156.68,21.93]
[1723369296909,6.3472,156.72,156.68,21.93]
[1723369297110,16.388,156.75,156.7,21.93]
[1723369297310,16.388,156.75,156.71,1.27599168]
[1723369297532,16.388,156.75,156.64,21.93]
[1723369297533,16.388,156.75,156.74,21.93]
[1723369297834,16.388,156.79,156.74,21.93]
[1723369298035,16.388,156.79,156.75,1.27567362]
[1723369299106,16.388,156.79,156.76,21.93]
[1723369299328,16.388,156.79,156.77,1.27560152]
[1723369299707,16.388,156.79,156.76,21.93]
[1723369301239,16.388,156.79,156.74,21.93]
[1723369301429,16.388,156.79,156.75,20.0]
[1723369302528,16.388,156.79,156.67,6.5291]
[1723369302834,42.7826,156.79,156.7,21.93]
[1723369303005,1.59503292,156.78,156.68,21.93]
[1723369303206,21.93,156.77,156.68,21.93]
[1723369303442,1.59509466,156.76,156.68,21.93]
[1723369303738,21.93,156.77,156.68,21.93]
[1723369304732,1.59513178,156.76,156.66,21.93]
[1723369305933,15.019,156.74,156.64,21.93]
[1723369307133,15.019,156.74,156.64,27.85128177]
[1723369307340,15.019,156.74,156.65,20.0]
[1723369307630,15.019,156.74,156.66,23.2063691]
[1723369307842,16.61436085,156.74,156.66,21.93]
[1723369308134,27.99179006,156.73,156.64,21.93]
[1723369308334,27.99179006,156.73,156.62,21.93]
[1723369308540,21.93,156.71,156.62,21.93]
[1723369308918,21.93,156.73,156.63,1.2764849]
[1723369309115,21.93,156.73,156.64,21.93]
[1723369310340,23.52561899,156.73,156.64,21.93]
[1723369310518,27.99191899,156.73,156.62,21.93]
[1723369310721,21.93,156.71,156.63,20.0]
[1723369311037,21.93,156.71,156.56,34.1342]
[1723369311038,6.6335,156.7,156.6,21.93]
[1723369311213,36.949,156.69,156.6,21.93]
[1723369311532,41.4165,156.69,156.58,21.93]
[1723369311731,36.949,156.69,156.58,21.93]
[1723369312312,41.4165,156.69,156.58,21.93]
[1723369312743,1.59616015,156.68,156.58,21.93]
[1723369313121,6.06386015,156.68,156.58,21.93]
[1723369313441,21.93,156.67,156.58,21.93]
[1723369314043,15.019,156.69,156.6,21.93]
[1723369314524,15.019,156.69,156.64,21.93]
[1723369315347,15.019,156.69,156.65,1.27657995]
[1723369315833,15.019,156.69,156.64,21.93]
[1723369316335,15.019,156.69,156.66,21.93]
[1723369316546,15.019,156.69,156.67,1.27637037]
[1723369316914,15.019,156.69,156.66,21.93]
[1723369317448,15.019,156.69,156.64,21.93]
[1723369317646,15.019,156.69,156.65,20.0]
[1723369319130,15.019,156.69,156.66,21.93]
[1723369319333,21.6525,156.76,156.68,21.93]
[1723369319518,21.6525,156.76,156.7,21.93]
[1723369320318,21.6525,156.76,156.71,1.27600797]
[1723369320518,21.6525,156.76,156.72,21.93]
[1723369320820,21.6525,156.76,156.73,1.27578914]
[1723369321020,15.019,156.76,156.74,1.27577283]
[1723369321239,21.6525,156.8,156.74,21.93]
[1723369321419,21.6525,156.8,156.72,21.93]
[1723369321817,4.4647,156.79,156.7,21.93]
[1723369322021,27.98998319,156.78,156.68,21.93]
[1723369322216,27.98998319,156.78,156.66,21.93]
[1723369322217,21.93,156.76,156.66,21.93]
[1723369322417,21.93,156.76,156.59,8.57750777]
[1723369322418,21.93,156.74,156.64,21.93]
[1723369322717,23.52550159,156.74,156.64,21.93]
[1723369323123,4.4663,156.73,156.64,21.93]
[1723369323742,4.4663,156.73,156.62,27.41]
[1723369324249,31.8766,156.72,156.62,27.41]
[1723369324432,27.41,156.72,156.62,27.41]
[1723369324637,27.41,156.72,156.63,1.27658792]
[1723369324834,27.41,156.72,156.62,27.41]
[1723369325333,15.5059,156.71,156.63,1.27654565]
[1723369325542,6.4961,156.7,156.63,1.27654565]
[1723369325741,6.4961,156.7,156.6,27.41]
[1723369326453,6.4961,156.7,156.56,27.41]
[1723369326454,33.9061,156.7,156.58,27.41]
[1723369326625,27.41,156.68,156.58,27.41]
[1723369326953,38.3735,156.7,156.58,27.41]
[1723369327247,4.4674,156.69,156.58,27.41]
[1723369327956,33.9061,156.7,156.51,6.2776]
[1723369327957,27.41,156.68,156.56,27.41]
[1723369328147,15.5059,156.67,156.56,27.41]
[1723369328333,15.5059,156.67,156.58,27.41]
[1723369328533,15.5059,156.67,156.59,1.27687191]
[1723369328734,15.5059,156.67,156.58,27.41]
[1723369329136,15.5059,156.67,156.59,1.27689814]
[1723369329437,15.5059,156.67,156.58,27.41]
[1723369329854,6.4961,156.66,156.56,27.41]
[1723369330049,6.4961,156.66,156.57,21.27704592]
[1723369330355,6.4961,156.66,156.57,20.0]
[1723369330653,6.4961,156.66,156.54,27.41]
[1723369330654,33.9061,156.66,156.54,27.41]
[1723369331030,38.3743,156.66,156.54,27.41]
[1723369331449,4.4685,156.65,156.54,27.41]
[1723369332053,4.4685,156.65,156.55,20.0]
[1723369332256,4.4688,156.64,156.54,27.41]
[1723369333161,31.8788,156.64,156.52,27.41]
[1723369333558,31.8788,156.64,156.53,65.0]
[1723369333864,15.5059,156.63,156.53,65.0]
[1723369334038,15.5059,156.63,156.53,20.0]
[1723369334436,6.4961,156.62,156.53,20.0]
[1723369334663,6.4961,156.62,156.52,27.41]